[Event "NJSK 2018 Jeugd A"]
[Site "Assen, Netherlands"]
[Date "2018.05.01"]
[Round "3.6"]
[White "Mesman, Edwyn"]
[Black "Kanbier, Max"]
[Result "1-0"]
[TimeControl "40/90m+30m+30sec/move"]
[WhiteElo "2082"]
[BlackElo "1857"]

1. d4 {[%clk 01:30:12]} {[%emt 00:00:40]} Nf6 {[%clk 01:30:38]} {[%emt
00:00:30]} 2. c4 {[%clk 01:30:36]} {[%emt 00:00:05]} e5 {[%clk 01:30:58]}
{[%emt 00:00:10]} 3. dxe5 {[%clk 01:30:54]} {[%emt 00:00:11]} Ng4 {[%clk
01:31:22]} {[%emt 00:00:06]} 4. Bf4 {[%clk 01:31:20]} {[%emt 00:00:04]} Nc6
{[%clk 01:31:43]} {[%emt 00:00:08]} 5. Nf3 {[%clk 01:31:47]} {[%emt 00:00:03]}
Bb4+ {[%clk 01:31:37]} {[%emt 00:00:37]} 6. Nbd2 {[%clk 01:32:11]} {[%emt
00:00:07]} Qe7 {[%clk 01:31:45]} {[%emt 00:00:21]} 7. e3 {[%clk 01:32:35]}
{[%emt 00:00:06]} Ngxe5 {[%clk 01:31:56]} {[%emt 00:00:19]} 8. Nxe5 {[%clk
01:33:00]} {[%emt 00:00:06]} Nxe5 {[%clk 01:32:18]} {[%emt 00:00:07]} 9. Be2
{[%clk 01:33:28]} {[%emt 00:00:02]} O-O {[%clk 01:31:49]} {[%emt 00:00:58]} 10.
O-O {[%clk 01:33:21]} {[%emt 00:00:38]} Bxd2 {[%clk 01:31:42]} {[%emt
00:00:37]} 11. Qxd2 {[%clk 01:33:46]} {[%emt 00:00:05]} d6 {[%clk 01:32:03]}
{[%emt 00:00:09]} 12. Qc3 {[%clk 01:29:30]} {[%emt 00:04:46]} f6 {[%clk
01:25:05]} {[%emt 00:07:28]} 13. Rfc1 {[%clk 01:16:51]} {[%emt 00:13:10]} Bf5
{[%clk 01:18:23]} {[%emt 00:07:11]} 14. b4 {[%clk 01:05:38]} {[%emt 00:11:43]}
Rfd8 {[%clk 01:14:34]} {[%emt 00:04:19]} 15. h3 {[%clk 00:51:36]} {[%emt
00:14:32]} Kh8 {[%clk 01:13:13]} {[%emt 00:01:51]} 16. a3 {[%clk 00:50:27]}
{[%emt 00:01:40]} Rac8 {[%clk 01:08:44]} {[%emt 00:04:58]} 17. a4 {[%clk
00:43:45]} {[%emt 00:07:13]} d5 {[%clk 01:05:38]} {[%emt 00:03:37]} 18. c5
{[%clk 00:40:29]} {[%emt 00:03:45]} g5 {[%clk 01:04:41]} {[%emt 00:01:27]} 19.
Bg3 {[%clk 00:36:19]} {[%emt 00:04:40]} Qg7 {[%clk 01:04:28]} {[%emt 00:00:44]}
20. Rd1 {[%clk 00:35:00]} {[%emt 00:01:49]} c6 {[%clk 01:04:24]} {[%emt
00:00:34]} 21. Rac1 {[%clk 00:29:09]} {[%emt 00:06:21]} Rd7 {[%clk 01:03:33]}
{[%emt 00:01:20]} 22. b5 {[%clk 00:26:05]} {[%emt 00:03:35]} Re8 {[%clk
01:02:50]} {[%emt 00:01:14]} 23. Qa5 {[%clk 00:23:55]} {[%emt 00:02:40]} Be4
{[%clk 01:01:36]} {[%emt 00:01:44]} 24. Qxa7 {[%clk 00:19:05]} {[%emt
00:05:20]} f5 {[%clk 00:59:35]} {[%emt 00:02:30]} 25. Bxe5 {[%clk 00:16:02]}
{[%emt 00:03:33]} Qxe5 {[%clk 00:59:13]} {[%emt 00:00:52]} 26. bxc6 {[%clk
00:15:57]} {[%emt 00:00:35]} Rg7 {[%clk 00:59:36]} {[%emt 00:00:07]} 27. cxb7
{[%clk 00:13:29]} {[%emt 00:02:58]} g4 {[%clk 00:59:54]} {[%emt 00:00:11]} 28.
hxg4 {[%clk 00:12:48]} {[%emt 00:01:11]} fxg4 {[%clk 00:59:57]} {[%emt
00:00:27]} 29. c6 {[%clk 00:06:10]} {[%emt 00:07:08]} g3 {[%clk 00:59:09]}
{[%emt 00:01:18]} 30. f4 {[%clk 00:06:32]} {[%emt 00:00:08]} Qd6 {[%clk
00:58:37]} {[%emt 00:01:03]} 31. Kf1 {[%clk 00:06:03]} {[%emt 00:01:00]} Rg6
{[%clk 00:53:58]} {[%emt 00:05:08]} 32. c7 {[%clk 00:05:20]} {[%emt 00:01:13]}
Rh6 {[%clk 00:54:16]} {[%emt 00:00:12]} 33. Qd4 {[%clk 00:05:25]} {[%emt
00:00:26]} Kg8 {[%clk 00:54:34]} {[%emt 00:00:11]} 34. Ke1 {[%clk 00:05:18]}
{[%emt 00:00:37]} 1-0

[Event "NJSK 2018 Jeugd A"]
[Site "Assen, Netherlands"]
[Date "2018.05.01"]
[Round "3.7"]
[White "Van der Werf, Joel"]
[Black "Pols, Wiggert"]
[Result "0-1"]
[TimeControl "40/90m+30m+30sec/move"]
[WhiteElo "1842"]
[BlackElo "2068"]

1. e4 {[%clk 01:30:50]} {[%emt 00:00:03]} c5 {[%clk 01:30:55]} {[%emt
00:00:12]} 2. Nf3 {[%clk 01:31:14]} {[%emt 00:00:06]} Nc6 {[%clk 01:31:20]}
{[%emt 00:00:05]} 3. d4 {[%clk 01:31:40]} {[%emt 00:00:03]} cxd4 {[%clk
01:31:43]} {[%emt 00:00:07]} 4. Nxd4 {[%clk 01:32:05]} {[%emt 00:00:06]} e5
{[%clk 01:32:09]} {[%emt 00:00:04]} 5. Nb5 {[%clk 01:32:31]} {[%emt 00:00:04]}
d6 {[%clk 01:32:33]} {[%emt 00:00:06]} 6. N1c3 {[%clk 01:32:57]} {[%emt
00:00:04]} a6 {[%clk 01:32:58]} {[%emt 00:00:06]} 7. Na3 {[%clk 01:33:23]}
{[%emt 00:00:03]} b5 {[%clk 01:33:23]} {[%emt 00:00:04]} 8. Nd5 {[%clk
01:33:46]} {[%emt 00:00:07]} Nge7 {[%clk 01:33:46]} {[%emt 00:00:08]} 9. c4
{[%clk 01:34:12]} {[%emt 00:00:04]} Nxd5 {[%clk 01:34:08]} {[%emt 00:00:08]} 10.
cxd5 {[%clk 01:34:24]} {[%emt 00:00:18]} Nd4 {[%clk 01:34:32]} {[%emt
00:00:06]} 11. Bd3 {[%clk 01:34:46]} {[%emt 00:00:08]} g6 {[%clk 01:34:53]}
{[%emt 00:00:09]} 12. Be3 {[%clk 01:33:47]} {[%emt 00:01:29]} Bg7 {[%clk
01:35:15]} {[%emt 00:00:07]} 13. Nc2 {[%clk 01:34:11]} {[%emt 00:00:06]} O-O
{[%clk 01:35:13]} {[%emt 00:00:32]} 14. Qd2 {[%clk 01:34:11]} {[%emt 00:00:31]}
Nxc2+ {[%clk 01:28:20]} {[%emt 00:07:23]} 15. Bxc2 {[%clk 01:31:53]} {[%emt
00:02:48]} f5 {[%clk 01:27:25]} {[%emt 00:01:25]} 16. f3 {[%clk 01:31:46]}
{[%emt 00:00:36]} Bf6 {[%clk 01:13:25]} {[%emt 00:14:29]} 17. Bd3 {[%clk
01:08:51]} {[%emt 00:23:26]} Bh4+ {[%clk 01:07:05]} {[%emt 00:07:02]} 18. Bf2
{[%clk 01:08:33]} {[%emt 00:00:36]} Bxf2+ {[%clk 01:05:53]} {[%emt 00:01:43]}
19. Qxf2 {[%clk 01:04:39]} {[%emt 00:04:23]} fxe4 {[%clk 01:05:22]} {[%emt
00:01:02]} 20. Bxe4 {[%clk 01:04:49]} {[%emt 00:00:19]} Qa5+ {[%clk 00:59:57]}
{[%emt 00:05:55]} 21. Qd2 {[%clk 01:01:00]} {[%emt 00:04:20]} Qxd2+ {[%clk
01:00:15]} {[%emt 00:00:11]} 22. Kxd2 {[%clk 01:01:21]} {[%emt 00:00:09]} Bb7
{[%clk 00:59:46]} {[%emt 00:00:59]} 23. Rhc1 {[%clk 00:49:58]} {[%emt
00:11:53]} Rfc8 {[%clk 00:57:26]} {[%emt 00:02:50]} 24. Rxc8+ {[%clk 00:46:01]}
{[%emt 00:04:28]} Rxc8 {[%clk 00:28:39]} {[%emt 00:29:17]} 25. Rc1 {[%clk
00:43:45]} {[%emt 00:02:46]} Rxc1 {[%clk 00:29:03]} {[%emt 00:00:06]} 26. Kxc1
{[%clk 00:44:11]} {[%emt 00:00:04]} Kf7 {[%clk 00:29:24]} {[%emt 00:00:08]} 27.
b4 {[%clk 00:39:10]} {[%emt 00:05:32]} Kf6 {[%clk 00:28:49]} {[%emt 00:01:05]}
28. Kd2 {[%clk 00:24:15]} {[%emt 00:15:24]} Kg5 {[%clk 00:26:20]} {[%emt
00:02:58]} 29. Ke3 {[%clk 00:20:17]} {[%emt 00:04:28]} Kh4 {[%clk 00:22:18]}
{[%emt 00:04:33]} 30. f4 {[%clk 00:18:42]} {[%emt 00:02:06]} exf4+ {[%clk
00:22:43]} {[%emt 00:00:05]} 31. Kxf4 {[%clk 00:18:59]} {[%emt 00:00:13]} Bc8
{[%clk 00:22:03]} {[%emt 00:01:10]} 32. Bf3 {[%clk 00:11:19]} {[%emt 00:08:09]}
Bf5 {[%clk 00:20:10]} {[%emt 00:02:23]} 33. h3 {[%clk 00:11:20]} {[%emt
00:00:29]} Bc2 {[%clk 00:10:01]} {[%emt 00:10:39]} 34. g3 {[%clk 00:04:44]}
{[%emt 00:07:06]} Kxh3 {[%clk 00:10:14]} {[%emt 00:00:17]} 35. Bg4 {[%clk
00:05:13]} Kg2 {[%clk 00:10:09]} {[%emt 00:00:36]} 36. Bc8 {[%clk 00:05:40]}
{[%emt 00:00:02]} h6 {[%clk 00:08:56]} {[%emt 00:01:43]} 37. g4 {[%clk
00:03:02]} {[%emt 00:03:08]} g5+ {[%clk 00:09:12]} {[%emt 00:00:14]} 38. Ke3
{[%clk 00:03:09]} {[%emt 00:00:23]} Bd1 {[%clk 00:09:01]} {[%emt 00:00:42]} 39.
Bxa6 {[%clk 00:03:11]} {[%emt 00:00:28]} Bxg4 {[%clk 00:08:02]} {[%emt
00:01:28]} 40. Bxb5 {[%clk 00:03:37]} {[%emt 00:00:04]} h5 {[%clk 00:08:19]}
{[%emt 00:00:14]} 41. Bd3 {[%clk 00:24:06]} {[%emt 00:10:00]} h4 {[%clk
00:28:11]} {[%emt 00:10:38]} 42. b5 {[%clk 00:23:23]} {[%emt 00:01:14]} h3
{[%clk 00:28:03]} {[%emt 00:00:37]} 43. Be4+ {[%clk 00:22:30]} {[%emt
00:01:22]} Kg1 {[%clk 00:28:17]} {[%emt 00:00:17]} 44. b6 {[%clk 00:22:51]}
{[%emt 00:00:10]} Bc8 {[%clk 00:28:02]} {[%emt 00:00:44]} 45. Kf3 {[%clk
00:21:58]} {[%emt 00:01:24]} h2 {[%clk 00:27:37]} {[%emt 00:00:54]} 46. Kg3
{[%clk 00:22:17]} {[%emt 00:00:11]} h1=Q {[%clk 00:27:52]} {[%emt 00:00:15]} 47.
Bxh1 {[%clk 00:22:42]} Kxh1 {[%clk 00:28:16]} {[%emt 00:00:11]} 48. a4 {[%clk
00:23:06]} {[%emt 00:00:07]} Kg1 {[%clk 00:28:14]} {[%emt 00:00:30]} 49. a5
{[%clk 00:23:00]} {[%emt 00:00:37]} Kf1 {[%clk 00:28:35]} {[%emt 00:00:09]} 50.
a6 {[%clk 00:23:24]} {[%emt 00:00:07]} Bxa6 {[%clk 00:28:58]} {[%emt 00:00:07]}
51. Kg4 {[%clk 00:23:52]} {[%emt 00:00:01]} Bb7 {[%clk 00:27:37]} {[%emt
00:01:51]} 52. Kxg5 {[%clk 00:24:17]} {[%emt 00:00:06]} Bxd5 {[%clk 00:28:01]}
{[%emt 00:00:05]} 53. Kf6 {[%clk 00:24:41]} {[%emt 00:00:06]} Ba8 {[%clk
00:28:11]} {[%emt 00:00:20]} 0-1

[Event "NJSK 2018 Jeugd A"]
[Site "Assen, Netherlands"]
[Date "2018.05.01"]
[Round "3.8"]
[White "Van Hoorn, Geert"]
[Black "De Boer, Bas"]
[Result "0-1"]
[TimeControl "40/90m+30m+30sec/move"]
[WhiteElo "2008"]
[BlackElo "2159"]

1. e4 {[%clk 01:30:59]} c5 {[%clk 01:30:55]} {[%emt 00:00:05]} 2. Nc3 {[%clk
01:31:25]} {[%emt 00:00:04]} Nc6 {[%clk 01:31:21]} {[%emt 00:00:04]} 3. f4
{[%clk 01:31:48]} {[%emt 00:00:07]} g6 {[%clk 01:31:43]} {[%emt 00:00:08]} 4.
Nf3 {[%clk 01:32:12]} {[%emt 00:00:06]} Bg7 {[%clk 01:32:09]} {[%emt 00:00:04]}
5. Bb5 {[%clk 01:32:37]} {[%emt 00:00:06]} Nd4 {[%clk 01:32:33]} {[%emt
00:00:05]} 6. O-O {[%clk 01:33:01]} {[%emt 00:00:06]} a6 {[%clk 01:32:46]}
{[%emt 00:00:17]} 7. Bd3 {[%clk 01:33:26]} {[%emt 00:00:05]} d6 {[%clk
01:32:55]} {[%emt 00:00:21]} 8. Nxd4 {[%clk 01:33:51]} {[%emt 00:00:06]} cxd4
{[%clk 01:33:17]} {[%emt 00:00:07]} 9. Ne2 {[%clk 01:34:17]} {[%emt 00:00:05]}
Nf6 {[%clk 01:33:34]} {[%emt 00:00:13]} 10. c3 {[%clk 01:34:34]} {[%emt
00:00:12]} dxc3 {[%clk 01:33:44]} {[%emt 00:00:20]} 11. dxc3 {[%clk 01:34:59]}
{[%emt 00:00:05]} O-O {[%clk 01:33:02]} {[%emt 00:01:11]} 12. Kh1 {[%clk
01:35:26]} {[%emt 00:00:05]} b5 {[%clk 01:32:28]} {[%emt 00:01:03]} 13. a4
{[%clk 01:33:33]} {[%emt 00:02:24]} Bb7 {[%clk 01:31:40]} {[%emt 00:01:15]} 14.
Ng3 {[%clk 01:29:07]} {[%emt 00:04:57]} h5 {[%clk 01:29:11]} {[%emt 00:03:00]}
15. e5 {[%clk 01:24:51]} {[%emt 00:04:46]} dxe5 {[%clk 01:29:03]} {[%emt
00:00:38]} 16. fxe5 {[%clk 01:25:12]} {[%emt 00:00:09]} Ng4 {[%clk 01:27:03]}
{[%emt 00:02:30]} 17. e6 {[%clk 01:23:03]} {[%emt 00:02:40]} fxe6 {[%clk
01:25:50]} {[%emt 00:01:41]} 18. Qe2 {[%clk 01:14:21]} {[%emt 00:09:12]} Rxf1
{[%clk 01:25:37]} {[%emt 00:00:45]} 19. Qxf1 {[%clk 01:13:02]} {[%emt
00:01:49]} Qxd3 {[%clk 01:25:58]} {[%emt 00:00:09]} 0-1

[Event "NJSK 2018 Jeugd A"]
[Site "Assen, Netherlands"]
[Date "2018.05.01"]
[Round "3.9"]
[White "Gijsen, William"]
[Black "Bueno, Mark"]
[Result "1-0"]
[TimeControl "40/90m+30m+30sec/move"]
[WhiteElo "1825"]
[BlackElo "1999"]

1. d4 {[%clk 01:30:57]} {[%emt 00:00:02]} Nf6 {[%clk 01:30:56]} {[%emt
00:00:05]} 2. Bf4 {[%clk 01:31:23]} {[%emt 00:00:04]} d5 {[%clk 01:31:14]}
{[%emt 00:00:12]} 3. e3 {[%clk 01:31:47]} {[%emt 00:00:05]} e6 {[%clk
01:31:23]} {[%emt 00:00:21]} 4. Nd2 {[%clk 01:32:06]} {[%emt 00:00:11]} c5
{[%clk 01:31:45]} {[%emt 00:00:09]} 5. c3 {[%clk 01:32:30]} {[%emt 00:00:06]}
Nc6 {[%clk 01:31:57]} {[%emt 00:00:18]} 6. Bd3 {[%clk 01:32:14]} {[%emt
00:00:45]} Be7 {[%clk 01:30:35]} {[%emt 00:01:52]} 7. Ngf3 {[%clk 01:30:53]}
{[%emt 00:01:52]} h6 {[%clk 01:24:40]} {[%emt 00:06:24]} 8. Ne5 {[%clk
01:22:04]} {[%emt 00:09:19]} Nxe5 {[%clk 01:09:09]} {[%emt 00:16:02]} 9. dxe5
{[%clk 01:22:01]} {[%emt 00:00:32]} Nd7 {[%clk 01:09:27]} {[%emt 00:00:12]} 10.
O-O {[%clk 01:21:22]} {[%emt 00:01:09]} b6 {[%clk 01:06:47]} {[%emt 00:03:10]}
11. e4 {[%clk 01:08:01]} {[%emt 00:13:51]} Nf8 {[%clk 01:03:18]} {[%emt
00:03:59]} 12. Bg3 {[%clk 01:05:43]} {[%emt 00:02:48]} h5 {[%clk 01:02:13]}
{[%emt 00:01:35]} 13. f4 {[%clk 01:06:02]} {[%emt 00:00:11]} h4 {[%clk
00:59:19]} {[%emt 00:03:25]} 14. Bf2 {[%clk 01:04:41]} {[%emt 00:01:50]} Qc7
{[%clk 00:52:41]} {[%emt 00:07:08]} 15. exd5 {[%clk 01:02:46]} {[%emt
00:02:24]} exd5 {[%clk 00:53:08]} {[%emt 00:00:04]} 16. Nf3 {[%clk 00:51:33]}
{[%emt 00:11:44]} Bb7 {[%clk 00:50:39]} {[%emt 00:02:59]} 17. b4 {[%clk
00:47:41]} {[%emt 00:04:21]} c4 {[%clk 00:34:46]} {[%emt 00:16:23]} 18. Bf5
{[%clk 00:46:16]} {[%emt 00:01:55]} Rd8 {[%clk 00:31:23]} {[%emt 00:03:53]} 19.
Nd4 {[%clk 00:46:25]} {[%emt 00:00:20]} Bc8 {[%clk 00:31:16]} {[%emt 00:00:38]}
20. Bc2 {[%clk 00:40:37]} {[%emt 00:06:18]} g6 {[%clk 00:26:09]} {[%emt
00:05:38]} 21. Qf3 {[%clk 00:37:20]} {[%emt 00:03:46]} Ne6 {[%clk 00:26:01]}
{[%emt 00:00:38]} 22. Rae1 {[%clk 00:32:54]} {[%emt 00:04:56]} Qb7 {[%clk
00:18:18]} {[%emt 00:08:14]} 23. f5 {[%clk 00:32:28]} {[%emt 00:00:55]} gxf5
{[%clk 00:18:02]} {[%emt 00:00:47]} 24. Bxf5 {[%clk 00:31:59]} {[%emt
00:00:58]} Nxd4 {[%clk 00:17:50]} {[%emt 00:00:42]} 25. Bxd4 {[%clk 00:32:19]}
{[%emt 00:00:10]} Be6 {[%clk 00:18:04]} {[%emt 00:00:16]} 26. Bxe6 {[%clk
00:32:04]} {[%emt 00:00:45]} fxe6 {[%clk 00:18:14]} {[%emt 00:00:20]} 27. Qf7+
{[%clk 00:32:16]} {[%emt 00:00:17]} Kd7 {[%clk 00:18:34]} {[%emt 00:00:11]} 28.
Rf6 {[%clk 00:32:21]} {[%emt 00:00:24]} Qc6 {[%clk 00:15:05]} {[%emt 00:04:00]}
29. b5 {[%clk 00:32:04]} {[%emt 00:00:47]} Qxb5 {[%clk 00:15:33]} {[%emt
00:00:02]} 30. Qxe6+ {[%clk 00:32:17]} {[%emt 00:00:17]} Ke8 {[%clk 00:15:55]}
{[%emt 00:00:08]} 31. Ref1 {[%clk 00:30:53]} {[%emt 00:01:54]} Rd7 {[%clk
00:13:37]} {[%emt 00:02:48]} 32. Rh6 {[%clk 00:30:30]} 1-0

[Event "NJSK 2018 Jeugd A"]
[Site "Assen, Netherlands"]
[Date "2018.05.02"]
[Round "4.1"]
[White "Warmerdam, Max"]
[Black "Van Baar, Esper"]
[Result "1-0"]
[TimeControl "40/90m+30m+30sec/move"]
[WhiteElo "2378"]
[BlackElo "2237"]

1. d4 {[%clk 01:30:57]} {[%emt 00:00:02]} Nf6 {[%clk 01:30:08]} {[%emt
00:00:52]} 2. c4 {[%clk 01:31:23]} {[%emt 00:00:04]} e6 {[%clk 01:30:26]}
{[%emt 00:00:12]} 3. g3 {[%clk 01:31:49]} {[%emt 00:00:04]} d5 {[%clk
01:30:27]} {[%emt 00:00:30]} 4. Nf3 {[%clk 01:32:11]} {[%emt 00:00:07]} dxc4
{[%clk 01:21:22]} {[%emt 00:09:36]} 5. Bg2 {[%clk 01:32:31]} {[%emt 00:00:10]}
c5 {[%clk 01:17:42]} {[%emt 00:04:10]} 6. O-O {[%clk 01:32:19]} {[%emt
00:00:41]} Nc6 {[%clk 01:13:49]} {[%emt 00:04:24]} 7. dxc5 {[%emt 00:04:04]}
Qxd1 8. Rxd1 {[%clk 01:28:44]} Bxc5 {[%clk 01:10:29]} {[%emt 00:05:09]} 9. Nbd2
{[%clk 01:28:49]} {[%emt 00:00:07]} Bxf2+ {[%clk 00:51:14]} {[%emt 00:19:45]}
10. Kxf2 {[%clk 01:18:41]} {[%emt 00:10:37]} Ng4+ {[%clk 00:51:32]} {[%emt
00:00:11]} 11. Kg1 {[%clk 01:11:32]} {[%emt 00:07:39]} Ne3 {[%clk 00:51:41]}
{[%emt 00:00:22]} 12. Re1 {[%clk 01:10:01]} {[%emt 00:02:01]} Nc2 {[%clk
00:48:28]} {[%emt 00:03:44]} 13. Rb1 {[%clk 01:09:43]} {[%emt 00:00:48]} Nxe1
{[%clk 00:47:02]} {[%emt 00:01:55]} 14. Nxe1 {[%clk 01:10:08]} {[%emt
00:00:05]} O-O {[%clk 00:47:29]} {[%emt 00:00:04]} 15. Nxc4 {[%clk 01:10:08]}
{[%emt 00:00:29]} Rd8 {[%clk 00:44:10]} {[%emt 00:03:49]} 16. Nd3 {[%clk
01:08:05]} {[%emt 00:02:33]} f6 {[%clk 00:38:29]} {[%emt 00:06:11]} 17. Be3
{[%clk 01:00:24]} {[%emt 00:08:11]} Nd4 {[%clk 00:31:51]} {[%emt 00:07:08]} 18.
Kf2 {[%clk 00:56:48]} {[%emt 00:04:06]} e5 {[%clk 00:20:40]} {[%emt 00:11:42]}
19. Nc5 {[%clk 00:53:17]} {[%emt 00:04:00]} Rb8 {[%clk 00:17:48]} {[%emt
00:03:22]} 20. Na5 {[%clk 00:34:42]} {[%emt 00:19:05]} Bf5 {[%clk 00:07:03]}
{[%emt 00:11:15]} 21. Rc1 {[%clk 00:34:02]} {[%emt 00:01:10]} b6 {[%clk
00:06:23]} {[%emt 00:01:10]} 22. Bxd4 {[%clk 00:33:35]} {[%emt 00:00:57]} bxc5
{[%clk 00:03:00]} {[%emt 00:03:53]} 23. Bc3 {[%clk 00:33:48]} {[%emt 00:00:17]}
Rd7 {[%clk 00:01:49]} {[%emt 00:01:41]} 24. b3 {[%clk 00:33:43]} {[%emt
00:00:35]} Rbd8 {[%clk 00:01:42]} {[%emt 00:00:37]} 25. Nc6 {[%clk 00:33:58]}
{[%emt 00:00:16]} Rc8 {[%clk 00:01:23]} {[%emt 00:00:49]} 26. Bd5+ {[%clk
00:32:14]} {[%emt 00:02:13]} Kf8 {[%clk 00:01:38]} {[%emt 00:00:15]} 27. e4
{[%clk 00:32:39]} {[%emt 00:00:05]} Bh3 {[%clk 00:01:08]} {[%emt 00:01:00]} 28.
Ba5 {[%clk 00:32:31]} {[%emt 00:00:38]} Rd6 {[%clk 00:00:59]} {[%emt 00:00:40]}
29. Nxa7 {[%clk 00:31:29]} {[%emt 00:01:31]} Ra6 {[%clk 00:00:47]} {[%emt
00:00:43]} 30. Nxc8 {[%clk 00:27:51]} {[%emt 00:04:08]} Rxa5 {[%clk 00:01:09]}
{[%emt 00:00:07]} 31. b4 {[%clk 00:27:54]} {[%emt 00:00:28]} 1-0

[Event "NJSK 2018 Jeugd A"]
[Site "Assen, Netherlands"]
[Date "2018.05.02"]
[Round "4.2"]
[White "Vrolijk, Liam"]
[Black "Kokje, Joris"]
[Result "1/2-1/2"]
[TimeControl "40/90m+30m+30sec/move"]
[WhiteElo "2432"]
[BlackElo "2265"]

1. e4 {[%clk 01:30:56]} {[%emt 00:00:03]} c5 {[%clk 01:30:46]} {[%emt
00:00:07]} 2. Nf3 {[%clk 01:31:20]} {[%emt 00:00:14]} d6 {[%clk 01:31:07]}
{[%emt 00:00:09]} 3. d4 {[%clk 01:31:44]} {[%emt 00:00:06]} cxd4 {[%clk
01:31:32]} {[%emt 00:00:05]} 4. Nxd4 {[%clk 01:32:09]} {[%emt 00:00:06]} Nf6
{[%clk 01:31:54]} {[%emt 00:00:07]} 5. Nc3 {[%clk 01:32:33]} {[%emt 00:00:06]}
a6 {[%clk 01:32:19]} {[%emt 00:00:05]} 6. h3 {[%clk 01:32:58]} {[%emt
00:00:05]} e6 {[%clk 01:32:24]} {[%emt 00:00:25]} 7. g4 {[%clk 01:33:22]}
{[%emt 00:00:06]} h6 {[%clk 01:32:47]} {[%emt 00:00:07]} 8. Bg2 {[%clk
01:33:46]} {[%emt 00:00:06]} g5 {[%clk 01:33:03]} {[%emt 00:00:15]} 9. b3
{[%clk 01:34:04]} {[%emt 00:00:11]} Nbd7 {[%clk 01:30:58]} {[%emt 00:02:35]} 10.
Bb2 {[%clk 01:34:26]} {[%emt 00:00:09]} Ne5 {[%clk 01:29:01]} {[%emt 00:02:27]}
11. Qd2 {[%clk 01:34:49]} {[%emt 00:00:07]} Nfd7 {[%clk 01:26:13]} {[%emt
00:03:18]} 12. O-O-O {[%clk 01:35:04]} {[%emt 00:00:15]} b5 {[%clk 01:20:58]}
{[%emt 00:05:45]} 13. Nf5 {[%clk 01:34:52]} {[%emt 00:00:42]} exf5 {[%clk
01:18:21]} {[%emt 00:03:07]} 14. exf5 {[%clk 01:35:14]} {[%emt 00:00:08]} Rb8
{[%clk 01:14:22]} {[%emt 00:04:30]} 15. h4 {[%clk 01:35:36]} {[%emt 00:00:07]}
Rg8 {[%clk 01:12:23]} {[%emt 00:02:29]} 16. Rhe1 {[%clk 01:35:44]} {[%emt
00:00:23]} Bb7 {[%clk 01:06:32]} {[%emt 00:06:20]} 17. Bxb7 {[%clk 01:36:05]}
{[%emt 00:00:08]} Rxb7 {[%clk 01:06:59]} {[%emt 00:00:04]} 18. Nd5 {[%clk
01:34:43]} {[%emt 00:01:52]} Rb8 {[%clk 00:51:02]} {[%emt 00:16:27]} 19. Bc3
{[%clk 01:25:15]} {[%emt 00:09:57]} Rb7 {[%clk 00:43:35]} {[%emt 00:07:57]} 20.
Kb1 {[%clk 01:22:02]} {[%emt 00:03:44]} f6 {[%clk 00:40:22]} {[%emt 00:03:43]}
21. Nxf6+ {[%clk 01:09:42]} {[%emt 00:12:49]} Qxf6 {[%clk 00:40:08]} {[%emt
00:00:44]} 22. Qd5 {[%clk 01:09:55]} {[%emt 00:00:16]} Rc7 {[%clk 00:39:28]}
{[%emt 00:01:11]} 23. Ba5 {[%clk 01:09:50]} {[%emt 00:00:36]} Rc8 {[%clk
00:35:53]} {[%emt 00:04:05]} 24. Qxg8 {[%clk 01:08:56]} {[%emt 00:01:24]} Qf7
{[%clk 00:35:24]} {[%emt 00:00:59]} 25. Qh8 {[%clk 01:06:09]} {[%emt 00:03:17]}
Qf6 {[%clk 00:34:40]} {[%emt 00:01:14]} 26. Qxf6 {[%clk 00:57:15]} {[%emt
00:09:23]} Nxf6 {[%clk 00:34:47]} {[%emt 00:00:23]} 27. hxg5 {[%clk 00:57:06]}
{[%emt 00:00:39]} hxg5 {[%clk 00:35:10]} {[%emt 00:00:07]} 28. Bb4 {[%clk
00:56:23]} {[%emt 00:01:13]} Rc6 {[%clk 00:32:19]} {[%emt 00:03:21]} 29. f4
{[%clk 00:47:21]} {[%emt 00:09:32]} gxf4 {[%clk 00:31:41]} {[%emt 00:01:08]} 30.
g5 {[%clk 00:47:46]} {[%emt 00:00:06]} Nfg4 {[%clk 00:31:34]} {[%emt 00:00:37]}
31. Rd4 {[%clk 00:42:41]} {[%emt 00:05:34]} f3 {[%clk 00:26:49]} {[%emt
00:05:15]} 32. Rxg4 {[%clk 00:36:10]} {[%emt 00:07:01]} f2 {[%clk 00:26:51]}
{[%emt 00:00:28]} 33. Rg3 {[%clk 00:36:34]} {[%emt 00:00:06]} fxe1=Q+ {[%clk
00:26:32]} {[%emt 00:00:49]} 34. Bxe1 {[%clk 00:36:56]} {[%emt 00:00:08]} Kf7
{[%clk 00:19:46]} {[%emt 00:07:16]} 35. Rh3 {[%clk 00:34:41]} {[%emt 00:02:45]}
Rc5 {[%clk 00:17:05]} {[%emt 00:03:11]} 36. g6+ {[%clk 00:20:20]} {[%emt
00:14:50]} Nxg6 {[%clk 00:09:26]} {[%emt 00:08:09]} 37. fxg6+ {[%clk 00:20:10]}
{[%emt 00:00:40]} Kxg6 {[%clk 00:09:50]} {[%emt 00:00:06]} 38. Bc3 {[%clk
00:20:08]} {[%emt 00:00:31]} Kf7 {[%clk 00:08:12]} {[%emt 00:02:09]} 39. Kb2
{[%clk 00:19:38]} {[%emt 00:01:01]} Be7 {[%clk 00:06:51]} {[%emt 00:01:51]} 40.
Rh8 {[%clk 00:16:48]} {[%emt 00:03:19]} Ke6 {[%clk 00:05:48]} {[%emt 00:01:33]}
41. Rh7 {[%clk 00:16:02]} {[%emt 00:01:16]} Rf5 {[%clk 00:04:42]} {[%emt
00:01:36]} 42. Bd4 {[%clk 00:16:04]} {[%emt 00:00:27]} Rf7 {[%clk 00:04:09]}
{[%emt 00:01:03]} 43. Rh3 {[%clk 00:15:59]} {[%emt 00:00:35]} Kd5 {[%clk
00:04:15]} {[%emt 00:00:24]} 44. Rd3 {[%clk 00:15:15]} {[%emt 00:01:14]} Kc6
{[%clk 00:04:03]} {[%emt 00:00:43]} 45. Rc3+ {[%clk 00:15:37]} {[%emt
00:00:07]} Kd5 {[%clk 00:04:12]} {[%emt 00:00:21]} 46. Rd3 {[%clk 00:16:02]}
{[%emt 00:00:06]} Kc6 {[%clk 00:04:38]} {[%emt 00:00:04]} 47. Rc3+ {[%clk
00:16:27]} {[%emt 00:00:05]} Kd5 {[%clk 00:04:37]} {[%emt 00:00:31]} 1/2-1/2